Cogmind - Beta 13 @@@ ROGUE MODE // 2024.06.23 @ 16:40:35 Player: Quiggsy Result: Destroyed by G-50 Soldier with Heavy Laser Performance ------------- Evolutions (2) 1000 Regions Visited (4) 800 Robots Destroyed (43) 215 Value Destroyed (1121) 1121 Prototype IDs (0) 0 Alien Tech Used (0) 0 Bonus (-15) -15 TOTAL SCORE: 3121 Bonus ------- Friendly Fire -15 Cogmind --------- Core Integrity 0/550 Matter 280/300 Energy 45/100 System Corruption 6% Temperature Cool (9) Movement Walking (120) Location -8/Materials Parts ------- > --- POWER (2) -------- (None) > --- PROPULSION (4) --- Aluminum Leg Aluminum Leg Flight Unit Flight Unit > --- UTILITY (3) ------ Improved Heat Sink Hacking Suite > --- WEAPON (2) ------- Particle Gun Particle Gun > --- INVENTORY (5) ---- Disposable Heat Sink System Shield Datajack Peak State ------------ > --- POWER ------------ Nuclear Core Nuclear Core > --- PROPULSION ------- VSS Leg VSS Leg > --- UTILITY ---------- Hardened Medium Armor Plating Hacking Suite > --- WEAPON ----------- (None) > --- INVENTORY -------- Hacking Suite System Shield Datajack [Rating: 18] Favorites ----------- Power Light Nuclear Core Engine Ion Engine Power Core Light Nuclear Core Propulsion Light Treads Treads Light Treads Leg VSS Leg Wheel Compact Wheel Hover Unit Hover Unit Flight Unit Flight Unit Utility Improved Heat Sink Device Improved Heat Sink Storage Small Storage Unit Processor Signal Interpreter Hackware Hacking Suite Protection Hardened Medium Armor Plating Weapon Beam Cannon Energy Gun Beam Rifle Energy Cannon Beam Cannon Ballistic Gun Assault Rifle Launcher Shock Bomb Launcher Slashing Weapon Axe Build | -11 -10 -10 -9 -8 ------- Run | Yrd Mat Min Mat Mat Slots Evolved 4 | . . . 2 2 Power 1 | . . . . 1 Propulsion 2 | . . . 1 1 Utility 1 | . . . 1 . Weapon . | . . . . . Parts Attached 77 | 8 23 5 9 32 Power 14 | 2 5 1 2 4 Engine 9 | 2 3 . 2 2 Core 5 | . 2 1 . 2 Reactor . | . . . . . Propulsion 25 | 2 5 3 3 12 Treads 11 | . 2 3 3 3 Leg 4 | . . . . 4 Wheel 2 | 2 . . . . Hover 3 | . 3 . . . Flight 5 | . . . . 5 Utility 12 | 1 4 . 1 6 Device 6 | . 2 . . 4 Storage 2 | 1 1 . . . Processor 1 | . 1 . . . Hackware 2 | . . . 1 1 Protection 1 | . . . . 1 Artifact . | . . . . . Weapon 26 | 3 9 1 3 10 Energy Gun 7 | . 1 . 1 5 Energy Cannon 2 | . 1 . . 1 Ballistic Gun 11 | 3 5 1 1 1 Ballistic Cannon . | . . . . . Launcher 4 | . 2 . 1 1 Special Weapon . | . . . . . Impact Weapon . | . . . . . Slashing Weapon 2 | . . . . 2 Piercing Weapon . | . . . . . Special Melee Weapon . | . . . . . Unidentified Prototypes . | . . . . . Corrupted Parts 1 | . . . . 1 System Corruption 6 | . . . . 6 Parts Lost 36 | . 6 . 6 24 Power 8 | . 2 . 1 5 Propulsion 14 | . 2 . 2 10 Utility 5 | . . . . 5 Weapon 9 | . 2 . 3 4 Highest Loss Streak 12 | . 3 . 5 12 To Critical Strikes . | . . . . . Average Slot Usage (%) 88 | . 97 100 82 67 Engine 5 | . 9 . 7 8 Core 6 | . 3 14 3 1 Treads 18 | . 7 28 20 12 Wheel 1 | . 8 . . . Hover 2 | . 11 . . . Flight 2 | . . . . 9 Device 10 | . 8 14 11 8 Storage 2 | . 9 . . . Processor 9 | . 9 14 11 3 Hackware 3 | . . . 11 6 Energy Gun 3 | . 2 . 4 6 Energy Cannon 7 | . 5 14 3 . Ballistic Gun 11 | . 18 14 8 4 Naked Turns . | . . . . . Heaviest Build 22 | 14 19 12 12 22 Greatest Support 80 | 26 40 40 60 80 Greatest Overweight (x) 5 | . 5 . 3 1 Average Overweight (x) . | . . . . . Largest Inventory Capacity 8 | 8 8 5 5 5 Average Capacity 5 | 6 6 5 5 5 Most Carried 8 | 6 8 5 4 5 Average Carried 4 | 3 5 4 3 3 Final Capacity 8 | 8 5 5 5 5 Final Carried 6 | 6 5 5 4 3 Class Distribution -------------------- 58% | Scavenger-Mutant 38% | Mutant 3% | Scavenger-Sprinter Dominant Class ---------------- Mutant | -10/Materials Scavenger-Mutant | -10/Mines Scavenger-Mutant | -9/Materials Scavenger-Mutant | -8/Materials Resources | -11 -10 -10 -9 -8 ----------- Run | Yrd Mat Min Mat Mat Matter Collected 1280 | 234 443 149 184 270 Remotely . | . . . . . Salvage Created 1450 | . 526 249 159 516 Parts 76 | . 30 4 13 29 Haulers Intercepted 1 | . 1 . . . Recyclers Shooed . | . . . . . Parts Field Recycled . | . . . . . Retrieved Matter . | . . . . . Parts Self-Destructed . | . . . . . Prevented . | . . . . . Kills | -11 -10 -10 -9 -8 ------- Run | Yrd Mat Min Mat Mat Combat Hostiles Destroyed 48 | . 14 13 9 12 Melee 6 | . . . . 6 Guns 18 | . 8 6 . 4 Cannons 12 | . 2 7 3 . AOE 11 | . 4 . 6 1 Classes Destroyed 10 | . 4 1 3 2 Worker 2 | . . . 1 1 Hauler 1 | . 1 . . . Mechanic 1 | . . . 1 . Operator 1 | . 1 . . . Watcher 1 | . . . . 1 Swarmer 15 | . 3 . 7 5 Grunt 17 | . 11 2 1 3 Sentry 4 | . . . 1 3 Specialist 1 | . . . . 1 Assembled 11 | . . 11 . . Best Kill Streak 8 | . 8 6 7 7 Combat Bots Only 8 | . 8 6 6 7 Max Kills in Single Turn 4 | . 4 1 3 1 Gunslinging . | . . . . . Exploded 4 | . 4 . 3 1 Melee 1 | . . . . 1 Uniques/NPCs Destroyed . | . . . . . Combat | -11 -10 -10 -9 -8 -------- Run | Yrd Mat Min Mat Mat Hostile Shots Fired 500 | . 92 63 66 279 Missed 172 | . 24 19 22 107 Damage Taken 4410 | . 803 626 585 2396 Core 946 | . 167 68 148 563 Absorbed by Shields . | . . . . . Core Remaining (%) 56 | 100 . 6 63 . Volleys Fired 131 | . 43 33 17 38 Largest 2 | . 2 2 2 2 Hottest 130 | . 80 83 83 130 Shots Fired 236 | . 86 66 24 60 Gun 163 | . 69 33 7 54 Cannon 62 | . 16 33 9 4 Launcher 11 | . 1 . 8 2 Special . | . . . . . Kinetic 133 | . 65 33 7 28 Thermal 88 | . 20 33 9 26 Explosive 9 | . 1 . 8 . Electromagnetic 6 | . . . . 6 Robot Hit Streak 9 | . 6 7 4 9 Robot Miss Streak 5 | . 3 5 3 2 Penetration Max . | . . . . . Secondary Targets 1 | . 1 . . . Max Gunslinging Chain 1 | . 1 . . . Shots Hit Robots 160 | . 56 36 14 54 Core Hits 83 | . 29 21 12 21 Critical Kills 1 | . . . . 1 Critical Parts Destroyed 1 | . . . . 1 Critical Strikes 3 | . . . . 3 Burn 1 | . . . . 1 Destroy 2 | . . . . 2 Melee Attacks 14 | . . . . 14 Impact . | . . . . . Slashing 14 | . . . . 14 Piercing . | . . . . . Sneak Attacks 1 | . . . . 1 Combat Hostiles 1 | . . . . 1 Follow-up Attacks . | . . . . . Damage Inflicted 3268 | . 1007 616 680 965 Guns 1359 | . 573 233 45 508 Cannons 776 | . 212 383 123 58 Explosions 822 | . 222 . 512 88 Melee 311 | . . . . 311 Ramming . | . . . . . Kinetic 971 | . 539 233 45 154 Thermal 1106 | . 246 383 123 354 Explosive 734 | . 222 . 512 . Electromagnetic 146 | . . . . 146 Impact . | . . . . . Slashing 311 | . . . . 311 Piercing . | . . . . . Highest Corruption 6 | . . . 4 6 Average Corruption 5 | . . . 4 6 Corruption Purged . | . . . . . Corruption Blocked . | . . . . . Effects 13 | . . . 2 11 Message Errors 3 | . . . . 3 Matter Fused 3 | . . . 1 2 Heat Flow Errors 3 | . . . . 3 Energy Discharges 1 | . . . 1 . Data Loss (minor) 1 | . . . . 1 Data Loss (major) 1 | . . . . 1 Weapon Failures 1 | . . . . 1 Overload Shots . | . . . . . Overflow Damage 67 | . . . 45 22 Projectiles . | . . . . . Explosions 45 | . . . 45 . Melee 22 | . . . . 22 Knockbacks . | . . . . . Impact . | . . . . . Kinetic . | . . . . . Secondary . | . . . . . Self-Inflicted Damage 25 | . . . 25 . Shots 1 | . . . 1 . Rammed . | . . . . . Targets Rammed . | . . . . . Kicked . | . . . . . Crushed . | . . . . . Highest Temperature 215 | . 9 15 . 215 Average Temperature 31 | . 3 8 . 46 Received Heat Transfer 816 | . 426 126 39 225 Siege Activations . | . . . . . Robots Corrupted . | . . . . . Combat Hostiles . | . . . . . Parts Fried 1 | . . . . 1 Impact Corruptions . | . . . . . Robots Melted 1 | . . . . 1 Combat Hostiles 1 | . . . . 1 Parts Melted 2 | . 1 . . 1 Heat Transferred 2517 | . 519 814 259 925 Parts Sabotaged . | . . . . . Parts Stolen . | . . . . . Parts Stripped . | . . . . . Power Chain Reactions . | . . . . . Alert | -11 -10 -10 -9 -8 ------- Run | Yrd Mat Min Mat Mat Peak Influence 321 | . 321 120 253 266 Initial 104 | . . 55 . 104 Average 121 | . 176 56 166 145 Maximum Alert Level 1 | . 1 . 1 1 Low Security (%) 74 | 100 46 100 37 90 Level 1 25 | . 53 . 62 9 Level 2 . | . . . . . Level 3 . | . . . . . Level 4 . | . . . . . Level 5 . | . . . . . High Security . | . . . . . Max Security . | . . . . . Squads Dispatched 6 | . 2 . 2 2 Investigation 1 | . 1 . . . Extermination . | . . . . . Reinforcement 5 | . 1 . 2 2 Assault . | . . . . . Garrison . | . . . . . Intercept . | . . . . . Searches Triggered . | . . . . . Construction Impeded 1 | . . . 1 . Haulers Reinforced . | . . . . . Active Scanning Responses . | . . . . . Cargo Convoy Interrupts . | . . . . . Stealth | -11 -10 -10 -9 -8 --------- Run | Yrd Mat Min Mat Mat Distress Signals 3 | . . . 2 1 Communications Jammed . | . . . . . Distress Signals . | . . . . . Times Spotted 81 | . 21 20 11 29 Peak Tracking Total 10 | . 10 4 7 7 Tactical Retreats 8 | . . 2 1 5 Traps | -11 -10 -10 -9 -8 ------- Run | Yrd Mat Min Mat Mat Traps Triggered 2 | . 1 . 1 . Indirectly . | . . . . . Trap Hack Attempts . | . . . . . Triggered . | . . . . . Disarmed . | . . . . . Reprogrammed . | . . . . . Reused . | . . . . . Traps Extracted . | . . . . . Installed . | . . . . . Triggered . | . . . . . Machines | -11 -10 -10 -9 -8 ---------- Run | Yrd Mat Min Mat Mat Machines Disabled 2 | . 1 . 1 . Max in Single Turn 1 | . 1 . 1 . Garrison Access 1 | . . . . 1 Machines Repaired . | . . . . . Machines Dismantled . | . . . . . Machines Sabotaged . | . . . . . Overloaded Fab Kills . | . . . . . Hacking | -11 -10 -10 -9 -8 --------- Run | Yrd Mat Min Mat Mat Machines Accessed 3 | . . . 2 1 Terminals 2 | . . . 2 . Fabricators . | . . . . . Repair Stations . | . . . . . Recycling Units . | . . . . . Scanalyzers . | . . . . . Garrison Access 1 | . . . . 1 Total Hacks 8 | . . . 5 3 Successful 6 | . . . 5 1 Failed 2 | . . . . 2 Catastrophic . | . . . . . Database Lockouts . | . . . . . Manual . | . . . . . Terminals 5 | . . . 5 . Fabricators . | . . . . . Repair Stations . | . . . . . Recycling Units . | . . . . . Scanalyzers . | . . . . . Garrison Access 3 | . . . . 3 Terminal Hacks 5 | . . . 5 . Record 3 | . . . 3 . Alert Level 1 | . . . 1 . Zone Layout 1 | . . . 1 . Fabricator Hacks . | . . . . . Repair Station Hacks . | . . . . . Recycling Unit Hacks . | . . . . . Scanalyzer . | . . . . . Garrison Access Hacks 1 | . . . . 1 Seal Access 1 | . . . . 1 Unauthorized Hacks . | . . . . . Terminals . | . . . . . Fabricators . | . . . . . Repair Stations . | . . . . . Recycling Units . | . . . . . Scanalyzers . | . . . . . Garrison Access . | . . . . . Data Cores Recovered 1 | . 1 . . . Used . | . . . . . Hacking Detections 2 | . . . 1 1 Full Trace Events . | . . . . . Feedback Events . | . . . . . Feedback Blocked . | . . . . . Robot Schematics Acquired . | . . . . . Robots Built . | . . . . . Authchips . | . . . . . Time . | . . . . . Total Robot Build Rating . | . . . . . Part Schematics Acquired . | . . . . . Parts Built . | . . . . . Authchips . | . . . . . Time . | . . . . . Total Part Build Rating . | . . . . . Parts Repaired . | . . . . . Time . | . . . . . Parts Recycled . | . . . . . Recycled Matter . | . . . . . Retrieved Matter . | . . . . . Retrieved Components . | . . . . . Parts Scanalyzed . | . . . . . Part Schematics Acquired . | . . . . . Parts Damaged . | . . . . . Bothacking | -11 -10 -10 -9 -8 ------------ Run | Yrd Mat Min Mat Mat Used RIF Installer . | . . . . . Robots Hacked . | . . . . . Non-combat . | . . . . . Combat . | . . . . . Robot Hacks Applied . | . . . . . Relay Couplers Released . | . . . . . Fabnet Peak Effective % . | . . . . . Robots Rewired . | . . . . . Allies Hacked . | . . . . . Hacks Repelled . | . . . . . Allies | -11 -10 -10 -9 -8 -------- Run | Yrd Mat Min Mat Mat Total Allies 3 | . . 3 . . Largest Group 3 | . . 3 . . Highest-Rated Group 40 | . . 40 . . Highest-Rated Ally 16 | . . 16 . . Total Orders . | . . . . . Ally Attacks 30 | . . 30 . . Total Damage 273 | . . 273 . . Kills 3 | . . 3 . . Allies Corrupted 1 | . . 1 . . Allies Melted . | . . . . . Intel | -11 -10 -10 -9 -8 ------- Run | Yrd Mat Min Mat Mat Robot Analysis Total . | . . . . . Derelict Logs Recovered 1 | . . 1 . . Drone Launches . | . . . . . Drone Recoveries . | . . . . . Exploration | -11 -10 -10 -9 -8 ------------- Run | Yrd Mat Min Mat Mat Turns Passed 2241 | 76 515 753 375 522 Spaces Moved 1506 | 69 404 399 202 432 Core 66 | 5 1 . 45 15 Treads 736 | . 78 399 157 102 Legs 56 | . . . . 56 Wheels 135 | 64 71 . . . Hover 254 | . 254 . . . Flight 259 | . . . . 259 Fastest Speed 31 | 50 56 160 150 31 Average Speed 111 | 87 83 160 158 76 Slowest Speed 300 | 100 300 160 200 180 Overloaded Moves . | . . . . . Propulsion Burnouts . | . . . . . Robots Hopped 1 | . . . . 1 Cave-ins Triggered 1 | . . . 1 . Exploration Rate (%) 44 | 4 74 89 30 25 Regions Visited 4 Branch Regions 1 Pre-discovered Areas . | . . . . . Known Exits Taken 3 | . 1 1 1 . Unknown Exits Taken 1 | 1 . . . . Scrap Searched 3 | . . 3 . . Spaces Dug . | . . . . . Terrain Destroyed 54 | . . . 54 . Melee . | . . . . . Projectile . | . . . . . AOE 54 | . . . 54 . Terrain Rammed . | . . . . . Walls Destroyed . | . . . . . Machines Disabled . | . . . . . Actions | -11 -10 -10 -9 -8 --------- Run | Yrd Mat Min Mat Mat Total 1798 | 80 501 451 230 536 Wait 17 | . 4 6 2 5 Move 1500 | 68 403 398 201 430 Hop 1 | . . . . 1 Pick Up 23 | 4 10 2 1 6 Fast Attach 38 | 6 5 . 5 22 Attach 15 | . 6 . 3 6 Detach 5 | . 3 . . 2 Swap 24 | 2 12 5 1 4 Drop 30 | . 15 7 . 8 Fire 131 | . 43 33 17 38 Melee 14 | . . . . 14 Ram . | . . . . . Kick . | . . . . . Crush . | . . . . . Escape Stasis . | . . . . . Rewire . | . . . . . Trap . | . . . . . Miscellaneous . | . . . . . Route ------- -11/Scrapyard -10/Materials (discovered 2 exits: *Mat / *Min) -10/Mines (discovered 2 exits: *Mat x2) -9/Materials (discovered 3 exits: *Mat / *Min / Sto) -8/Materials History --------- Turn | Location | Event 7 | -11/Scrapyard | Discovered new exit (range 15) 77 | -11/Scrapyard | Entered Materials 190 | -10/Materials | Destroyed 8 combat bots 243 | -10/Materials | Lost 3 parts (1p2w) 266 | -10/Materials | Discovered new exit (range 3) 267 | -10/Materials | Identified exit to Materials 308 | -10/Materials | Build established: Mutant 413 | -10/Materials | Discovered new exit (range 6) 415 | -10/Materials | Identified exit to Mines 431 | -10/Materials | Core integrity fell below 50% 592 | -10/Materials | Entered Mines 658 | -10/Mines | Discovered exit to Materials (range 7) 676 | -10/Mines | Joined a pair of Derelicts in attacking an 0b10 outpost 740 | -10/Mines | Received a Rocket Launcher from a helpful Derelict 758 | -10/Mines | Assembled infested the area 844 | -10/Mines | Core integrity fell below 20% 865 | -10/Mines | Assisted by bots powering up and referring to "LRC-V3" 985 | -10/Mines | Build established: Scavenger-Mutant 1016 | -10/Mines | Discovered exit to Materials (range 8) 1345 | -10/Mines | Entered Materials 1345 | -9/Materials | Evolved 2 slots: Propulsion x1, Utility x1 1346 | -9/Materials | Identified exit to Storage 1514 | -9/Materials | Crushed by falling debris 1520 | -9/Materials | Discovered new exit (range 12) 1539 | -9/Materials | Identified exit to Mines 1545 | -9/Materials | Lost 5 parts (1p2n2w) 1574 | -9/Materials | Met 8R-AWN 1696 | -9/Materials | Discovered new exit (range 15) 1718 | -9/Materials | Identified exit to Materials 1720 | -9/Materials | Entered another Materials area 1720 | -8/Materials | Evolved 2 slots: Power x1, Propulsion x1 1978 | -8/Materials | Lost 12 parts (2p5n2u3w) 2008 | -8/Materials | Core integrity fell below 50% 2056 | -8/Materials | Core integrity fell below 20% 2090 | -8/Materials | Lost 7 parts (2p2n2u1w) 2122 | -8/Materials | Destroyed 7 combat bots 2242 | -8/Materials | Destroyed by G-50 Soldier with Heavy Laser Last Messages --------------- 02161_ XEKINT1TF>NF1W8,M|SXQ=X ZF GC LOGDWQT 02178_ System corrupted: Component data lost. 02194_ Connecting with Garrison Access... >>Seal Access door sealed. 02198_ T-07 Excavator is excavating. 02206_ Flight Unit destroyed. 02210_ 3 =VGGGR KW3:AAR1J&V 02217_ Y-45 Defender suffers critical hit (Burn). 02218_ Y-45 Defender critical meltdown. 02218_ Imp. Ion Engine melted. 02221_ Acquired 5 matter. 02224_ Flight Unit destroyed. 02226_ Acquired Aluminum Leg. 02227_ Lgt. Ion Engine destroyed. 02231_ Acquired Aluminum Leg. 02240_ Imp. Heat Sink destroyed. 02240_ System corrupted: Particle Gun failed to cycle. Map ----- +----------------------------------------------------+ | ?????# # ####?????# ## #######??# # | | ?????### !##????# ## #????????# %# | | ???????# !#????# ## #????????# | | ???????# !#????# ## #????????# | | ???????# !#????# ## #??????### | | ???????# !#????# ## #??????# | | ???????# !##????# ## #?????## | | ?##????# ########## ########????# | | ## ##### # # #? #????# | | # # # """ # # #????# | | # """ # + """ # # " " #????# | | # "G" !# # """ # + "R" #????### | | # " " # # # # """ #????# # % | | # #%!# """ # # #????#% | | # + # """ ! # ############### %% | | #!! ! # # """ # # # | | #!! # # # + """"" " # !! | | # # #####+#### # """"" # !! | | # """ # ### ### # """"" %# !! | | # """ / # ###### | | # """ # T # #????? | | # ###### ! ####################????? | | ##############g ########?????????????????? | | ??????# # g#/[ #?????????????????? | | ??????# [%+ [g% """ #?????????????????? | | ??????# # #@ """ #?????????????????? | | ??????# """ # # """ #?????????????????? | | ??????# """ #### #?????????????????? | | ??????# """ #??# ! #?????????????????? | | ??????########??########?????????????????? | | ?????????????????????????????????????????? | | ?????????????????????????????????????????? | | ?????????????????????????????????????????? | | ?????????????????????????????????????????? | | ?????????????????????????????????????????? | | ?????????????????????????????????????????? | | ?????????????????????????????????????????? | | ?????????????????????????????????????????? | | ?????????????????????????????????????????? | | ?????????????????????????????????????????? | | ?????????????????????????????????????????? | | ?????????????????????????????????????????? | | | | | | | | | | | | | | | | | +----------------------------------------------------+ Best States ------------- Heat Dissipation 59 Coolant Potential 50 Energy Generation 23 Energy Capacity 380 Matter Stores 300 Matter Capacity 500 Sight Range 16 Terrain Scan Density 10 Armor Coverage 225 Evasion (%) 63 Recoil Reduction 4 Offensive Hacking 10 Item Schematics ----------------- None Robot Schematics ------------------ None Fabricated ------------ Nothing Alien Tech Used ----------------- None Achievements -------------- Universal Adapter Unlikely Earthworm Challenges ------------ None Game ------ Seed LargeCoilCapacitor Manual? 0 Play Time 00:32:40 Cumulative 11.1 hours Start 2024.06.23 @ 16:07:52 End 2024.06.23 @ 16:40:35 Sessions 1 Manual Loads 0 Difficulty Rogue Special Mode None Game No. 13 Rogue 13 Adventurer 0 Explorer 0 Win Type - Total 0 Types 0/0/0/0/0/0/0/0/0 Lore% 5 Gallery% 16 Achievement% 14 Wizard Run 0 Options --------- Layout 1 ASCII 0 Keyboard 0 Movement Numpad Keybinds 0 Fullscreen 2 Font 24/Cog Map View 50x35 Zoom Use 0% Tactical HUD 1 Map Filters NONE Filters NONE Steam 1 RUN: 17882d7a-040a-4abe-958f-3c4acbe14ec1